fUSD/lending_fUSD_20240319
["ID","MTS","AMOUNT","RATE_DAILY","PERIOD"]
[319556588,1710855042930,-734.16390608,0.00036878,4]
[319556589,1710855042940,-155.0,0.00036878,3]
[319556590,1710855042951,-207.00003462,0.00036878,4]
[319556591,1710855042960,-155.38929416,0.00036878,4]
[319556592,1710855042970,-2973.58421331,0.00036879,4]
[319556593,1710855042981,-7469.50299373,0.00036879,2]
[319556594,1710855043012,-6706.76070345,0.00036879,2]
[319556595,1710855043045,-3619.99999998,0.00036879,2]
[319556596,1710855043058,-19025.75918339,0.00036879,2]
[319556597,1710855043092,-1651.75504572,0.00036879,2]
[319556598,1710855043105,-1815.64755132,0.00036879,2]
[319556599,1710855043172,-1655.94777643,0.00036879,2]
[319556600,1710855043185,-5132.89858728,0.00036879,2]
[319556601,1710855043198,-10585.82,0.00036879,2]
[319556602,1710855043214,-31921.7636,0.00036879,2]
[319556603,1710855043237,-1247.33867596,0.00036879,2]
[319556621,1710855045867,-258.90026698,0.00036879,2]
[319556632,1710855046057,-183882.21376948,0.00036879,2]
[319556633,1710855046066,-187.8324566,0.0003688,4]
[319556634,1710855046074,-809.15225622,0.0003688,4]
[319556635,1710855046083,-223.0120948,0.0003688,30]
[319556636,1710855046091,-591.58763706,0.0003688,17]
[319556637,1710855046098,-1160.45768756,0.0003688,4]
[319556638,1710855046106,-236.0,0.0003688,43]
[319556639,1710855046114,-4000.0,0.0003688,7]
[319556640,1710855046124,-155.0,0.0003688,4]
[319556641,1710855046133,-2000.0,0.0003688,4]
[319556642,1710855046143,-155.0,0.0003688,4]
[319556643,1710855046152,-2000.0,0.0003688,2]
[319556644,1710855046162,-200.0,0.0003688,2]
[319556645,1710855046173,-2000.0,0.0003688,2]
[319556646,1710855046184,-200.0,0.0003688,2]
[319556647,1710855046194,-2000.0,0.0003688,2]
[319556648,1710855046203,-392797.3066158,0.0003688,2]
[319556649,1710855046214,-1735.61754,0.0003688,2]
[319556650,1710855046224,-1396.3036359,0.00036946,2]
[319556651,1710855046242,-51483.1340618,0.00036946,2]
[319556652,1710855046253,-11517.9735908,0.00036946,2]
[319556653,1710855046263,-264.9115756,0.00036971,2]
[319556655,1710855046273,-118215.5589821,0.00036999,2]
[319556657,1710855046283,-642.3119573,0.00036999,2]
[319556658,1710855046298,-544.2958918,0.00037024,2]
[319556659,1710855046308,-828.885846,0.00037103,2]
[319556660,1710855046318,-1524.29,0.00037111,2]
[319556661,1710855046329,-154.907594,0.00037225,7]
[319556662,1710855046339,-2000.0,0.00037249,2]
[319556663,1710855046349,-200.0,0.00037249,2]
[319556664,1710855046360,-2000.0,0.00037249,2]
[319556665,1710855046371,-200.0,0.00037249,2]
[319556666,1710855046381,-300.0,0.0003725,2]
[319556667,1710855046391,-161.87,0.00037262,10]
[319556668,1710855046401,-154.98704225,0.00037263,7]
[319556669,1710855046410,-3464.84437801,0.00037281,2]
[319556670,1710855046420,-531.69844972,0.00037346,3]
[319556671,1710855046430,-1597.36,0.00037534,62]
[319556672,1710855046439,-150.115,0.00037593,2]
[319556673,1710855046449,-326.19,0.00037611,2]
[319556674,1710855046459,-2000.0,0.00037621,2]
[319556675,1710855046468,-200.0,0.00037621,2]
[319556676,1710855046478,-200.0,0.00037621,2]
[319556677,1710855046488,-1846.05,0.00037698,62]
[319556678,1710855046498,-151.4167052,0.0003778,7]
[319556679,1710855046508,-3464.84437801,0.00037782,2]
[319556680,1710855046517,-4561.03794632,0.000378,11]
[319556681,1710855046527,-1948.98,0.00037873,2]
[319556682,1710855046536,-12462.77830808,0.000379,2]
[319556683,1710855046550,-240.70264812,0.00037904,2]
[319556685,1710855046559,-2000.0,0.00037998,2]
[319556686,1710855046569,-200.0,0.00037998,2]
[319556687,1710855046578,-220.0,0.00038,2]
[319556688,1710855046588,-251.4,0.00038,2]
[319556689,1710855046598,-349.0,0.00038,2]
[319556690,1710855046607,-1000.0,0.00038,2]
[319556691,1710855046616,-151.03343574,0.00038126,7]
[319556692,1710855046626,-180.16,0.00038146,2]
[319556693,1710855046635,-3464.84437801,0.00038283,2]
[319556694,1710855046645,-1597.36,0.00038356,64]
[319556695,1710855046655,-2000.0,0.00038377,2]
[319556696,1710855046665,-200.0,0.00038377,2]
[319556697,1710855046674,-357.0,0.00038457,2]
[319556698,1710855046683,-1064.77,0.00038457,2]
[319556699,1710855046693,-2417.0,0.00038457,2]
[319556700,1710855046702,-213.0,0.00038457,2]
[319556701,1710855046711,-1621.0,0.00038457,2]
[319556702,1710855046720,-2427.0,0.00038457,2]
[319556703,1710855046730,-42890.0,0.00038457,2]
[319556704,1710855046739,-4759.0,0.00038457,2]
[319556705,1710855046748,-5670.0,0.00038457,2]
[319556706,1710855046758,-1378.0,0.00038457,2]
[319556707,1710855046767,-959.0,0.00038457,2]
[319556708,1710855046776,-2561.0,0.00038457,2]
[319556709,1710855046786,-1044.0,0.00038457,2]
[319556710,1710855046797,-1228.0,0.00038457,2]
[319556711,1710855046806,-457.0,0.00038457,2]
[319556712,1710855046817,-536.0,0.00038457,2]
[319556713,1710855046826,-301.74,0.00038481,2]
[319556714,1710855046835,-346.78,0.00038481,2]
[319556715,1710855046845,-406.23,0.00038481,2]
[319556716,1710855046858,-1846.05,0.0003852,64]
[319556717,1710855046868,-153.02334127,0.0003857,2]
[319556718,1710855046877,-769.0,0.00038649,5]
[319556719,1710855046887,-158.54,0.000387,3]
[319556720,1710855046896,-4561.03794632,0.00038749,12]
[319556721,1710855046906,-3464.84437801,0.00038784,2]
[319556722,1710855046916,-592.09431737,0.000389,5]
[319556723,1710855046926,-12462.77830808,0.00039025,2]
[319556724,1710855046935,-240.70264812,0.00039029,2]
[319556725,1710855046945,-1597.36,0.00039178,66]
[319556726,1710855046955,-151.0,0.00039204,2]
[319556727,1710855046964,-156.51853804,0.00039218,7]
[319556728,1710855046973,-3464.84437801,0.00039285,2]
[319556729,1710855046983,-1846.05,0.00039342,66]
[319556730,1710855046992,-1000.0,0.00039506,30]
[319556731,1710855047002,-4561.03794632,0.00039699,13]
[319556732,1710855047011,-3464.84437801,0.00039786,2]
[319556733,1710855047021,-236.0,0.0003983,49]
[319556734,1710855047031,-302.0,0.00039862,4]
[319556735,1710855047040,-326.19,0.00039875,2]
[319556736,1710855047054,-155.0,0.0004,2]
[319556737,1710855047063,-2363.72809597,0.0004,120]
[319556738,1710855047073,-1000.0,0.0004,120]
[319556739,1710855047083,-500.0,0.0004,20]
[319556740,1710855047094,-1597.36,0.0004,68]
[319556741,1710855047104,-367.74088247,0.0004,2]
[319556742,1710855047114,-12462.77830808,0.0004015,2]
[319556743,1710855047123,-1846.05,0.00040164,68]
[319556744,1710855047132,-3464.84437801,0.00040287,2]
[319556745,1710855047142,-1216.1872106,0.00040424,4]
[319556746,1710855047151,-1906.74123082,0.00040424,4]
[319556747,1710855047161,-151.4167052,0.00040586,30]
[319556748,1710855047170,-4561.03794632,0.00040649,14]
[319556749,1710855047180,-3464.84437801,0.00040788,2]
[319556750,1710855047190,-1597.36,0.00040821,70]
[319556751,1710855047199,-1846.05,0.00040986,70]
[319556752,1710855047209,-183.0,0.00041096,2]
[319556753,1710855047220,-4000.0,0.00041096,2]
[319556754,1710855047233,-151.03343574,0.00041122,30]
[319556755,1710855047243,-12462.77830808,0.00041275,3]
[319556756,1710855047253,-3464.84437801,0.00041289,2]
[319556757,1710855047262,-151.03343574,0.00041453,30]
[319556758,1710855047272,-7883.999,0.00041457,2]
[319556759,1710855047281,-5670.0,0.00041457,2]
[319556760,1710855047290,-1044.0,0.00041457,2]
[319556761,1710855047305,-1226.0,0.00041457,2]
[319556762,1710855047314,-457.0,0.00041457,2]
[319556763,1710855047325,-151.03343574,0.00041486,30]
[319556764,1710855047336,-4561.03794632,0.00041599,15]
[319556765,1710855047347,-1597.36,0.00041643,72]
[319556766,1710855047357,-3464.84437801,0.00041791,2]
[319556767,1710855047367,-1846.05,0.00041808,72]
[319556768,1710855047377,-161.87,0.00041828,10]
[319556769,1710855047388,-1735.61754,0.0004188,2]
[319556770,1710855047398,-250.0,0.00041899,7]
[319556771,1710855047408,-120188.36689136,0.000419,7]
[319556772,1710855047418,-151.0,0.000419,14]
[319556773,1710855047428,-151.0,0.000419,14]
[319556774,1710855047437,-151.0,0.000419,14]
[319556775,1710855047447,-261.874214,0.000419,14]
[319556776,1710855047457,-151.0,0.000419,7]
[319556777,1710855047466,-261.874214,0.000419,14]
[319556778,1710855047476,-151.0,0.000419,14]
[319556779,1710855047486,-151.0,0.000419,14]
[319556780,1710855047496,-151.0,0.000419,14]
[319556781,1710855047506,-151.0,0.000419,14]
[319556782,1710855047515,-151.0,0.000419,14]
[319556783,1710855047525,-151.0,0.000419,14]
[319556784,1710855047536,-321.367021,0.000419,14]
[319556785,1710855047549,-151.0,0.000419,14]
[319556786,1710855047559,-151.0,0.000419,14]
[319556787,1710855047569,-321.367021,0.000419,14]
[319556788,1710855047579,-198.550018,0.000419,14]
[319556789,1710855047588,-198.550018,0.000419,14]
[319556790,1710855047598,-150.86,0.00041945,2]
[319556791,1710855047608,-321.69,0.00041945,2]
[319556792,1710855047617,-150.0,0.00041945,2]
[319556793,1710855047627,-1031.66,0.00041945,2]
[319556794,1710855047637,-415.02,0.00041945,2]
[319556795,1710855047647,-1338.74,0.00042,2]
[319556796,1710855047657,-152.54849992,0.00042074,30]
[319556797,1710855047667,-153.02334127,0.00042118,14]
[319556798,1710855047677,-326.19,0.00042139,2]
[319556799,1710855047687,-3464.84437801,0.00042292,2]
[319556800,1710855047697,-12462.77830808,0.000424,4]
[319556801,1710855047707,-500.0,0.00042447,7]
[319556802,1710855047717,-155.0817669,0.00042461,30]
[319556803,1710855047727,-1597.36,0.00042465,74]
[319556804,1710855047738,-249.71149375,0.00042477,10]
[319556805,1710855047749,-154.907594,0.00042492,30]
[319556806,1710855047760,-4561.03794632,0.00042548,17]
[319556807,1710855047770,-1846.05,0.0004263,74]
[319556808,1710855047780,-1000.0,0.00042729,30]
[319556809,1710855047790,-236.0,0.0004278,55]
[319556810,1710855047807,-3464.84437801,0.00042793,2]
[319556811,1710855047819,-750.0,0.00042995,7]
[319556812,1710855047829,-151.03343574,0.00043282,30]
[319556813,1710855047839,-1597.36,0.00043287,76]
[319556814,1710855047852,-3464.84437801,0.00043294,2]
[319556815,1710855047862,-1846.05,0.00043452,76]
[319556816,1710855047873,-4561.03794632,0.00043498,18]
[319556817,1710855047883,-12462.77830808,0.00043525,5]
[319556818,1710855047894,-250.0,0.00043543,7]
[319556819,1710855047903,-180.16,0.00043596,2]
[319556820,1710855047913,-3464.84437801,0.00043795,2]
[319556821,1710855047923,-158.54,0.000439,4]
[319556822,1710855047932,-249.71149375,0.00043901,11]
[319556823,1710855047942,-150.29628212,0.00044,44]
[319556824,1710855047952,-10000.0,0.00044,14]
[319556825,1710855047962,-1625.74042843,0.00044,30]
[319556826,1710855047971,-1597.36,0.00044109,78]
[319556827,1710855047981,-1846.05,0.00044273,78]
[319556828,1710855047991,-3464.84437801,0.00044296,2]
[319556829,1710855048000,-152.0,0.00044325,3]
[319556830,1710855048009,-150.0,0.00044394,120]
[319556831,1710855048019,-326.19,0.00044402,2]
[319556832,1710855048029,-4561.03794632,0.00044448,19]
[319556833,1710855048038,-1791.044,0.00044457,2]
[319556834,1710855048054,-12462.77830808,0.0004465,6]
[319556835,1710855048063,-3464.84437801,0.00044797,2]
[319556836,1710855048072,-151.03343574,0.00044858,30]
[319556837,1710855048082,-7500.0,0.000449,3]
[319556838,1710855048091,-1597.36,0.00044931,80]
[319556839,1710855048101,-25023.90120196,0.0004498,30]
[319556840,1710855048111,-7221.45178893,0.00044997,2]
[319556841,1710855048121,-190.43837036,0.00044997,120]
[319556842,1710855048131,-100000.0,0.00045,25]
[319556843,1710855048140,-1655752.38567966,0.00045,7]
[319556844,1710855048154,-2051.37420519,0.00045,7]
[319556845,1710855048166,-1020.294,0.00045,7]
[319556846,1710855048178,-1063.74952412,0.00045,7]
[319556847,1710855048190,-607.0,0.00045,7]
[319556848,1710855048202,-343.14739736,0.00045,7]
[319556849,1710855048214,-791.69739583,0.00045,7]
[319556850,1710855048226,-1480.00000167,0.00045,7]
[319556851,1710855048242,-63877.58846206,0.00045,7]
[319556852,1710855048254,-377.34566948,0.00045,7]
[319556853,1710855048282,-21160.81576136,0.00045,7]
[319556854,1710855048302,-354.64741582,0.00045,7]
[319556855,1710855048314,-8474.11798068,0.00045,7]
[319556856,1710855048345,-25573.33858663,0.00045,7]
[319556857,1710855048366,-432.27653367,0.00045,7]
[319556858,1710855048377,-462.63033284,0.00045,7]
[319556859,1710855048388,-599.03154491,0.00045,7]
[319556860,1710855048400,-16769.66945243,0.00045,7]
[319556861,1710855048411,-6125.91932275,0.00045,7]
[319556863,1710855052382,405.78863325,0.00013483,2]
[319556864,1710855073813,2526.42321814,0.00012,2]
[319556866,1710855097687,1580.83149784,0.00012,2]
[319556902,1710855595267,4860.193461,0.00013,7]
[319556952,1710856231961,-440.7574352,0.00014837,2]
[319556953,1710856231971,-499.05442867,0.00014838,2]
[319556954,1710856231980,-284.80150943,0.00014838,2]
[319556955,1710856232032,-775.55033462,0.00014838,2]
[319556956,1710856232097,-724.46256153,0.00014838,2]
[319556957,1710856232110,-3722.7020461,0.00014838,2]
[319556958,1710856232119,-2974.46712891,0.00014839,2]
[319556959,1710856232129,-522.56926041,0.0001484,2]
[319556960,1710856232138,-534.12503528,0.0001484,2]
[319556961,1710856232147,-522.56926041,0.0001484,2]
[319556962,1710856232156,-449.61243464,0.00014841,2]
[319556963,1710856232166,-150.0,0.00014852,2]
[319556964,1710856232175,-150.0,0.00014852,2]
[319556965,1710856232189,-172.19273836,0.00015,2]
[319556966,1710856232200,-11573.87,0.00015,2]
[319556967,1710856232210,-210.0,0.00016337,2]
[319556968,1710856232220,-210.0,0.00016337,2]
[319556969,1710856232233,-300.0,0.000188,2]
[319556970,1710856232244,-2467.14,0.00018898,2]
[319556971,1710856232255,-1068.36,0.00018898,2]
[319556972,1710856232264,-499.99,0.00018898,2]
[319556973,1710856232274,-150.99,0.00018898,2]
[319556974,1710856232283,-157.08516358,0.00020015,2]
[319556975,1710856232292,-299.99,0.00020689,2]
[319556976,1710856232302,-151.97156079,0.00022988,2]
[319556977,1710856232311,-150.0,0.00024095,2]
[319556978,1710856232321,-150.99,0.00024965,2]
[319556979,1710856232330,-152.54849992,0.0002626,2]
[319556980,1710856232339,-151.97156079,0.00026642,2]
[319556981,1710856232349,-156.51853804,0.00026658,2]
[319556982,1710856232359,-860.32261208,0.00026697,2]
[319556983,1710856232368,-1104.58887321,0.00026697,2]
[319556984,1710856232377,-155.0,0.00026697,2]
[319556985,1710856232386,-20255.64880244,0.00026698,2]
[319556986,1710856232396,-41624.69580679,0.00026699,2]
[319556987,1710856232406,-2504.0,0.000267,3]
[319556988,1710856232415,-152.47008401,0.00026891,2]
[319556989,1710856232425,-326.83,0.00027317,2]
[319556990,1710856232435,-1790.21546602,0.00027658,5]
[319556991,1710856232444,-250.0,0.0002794,2]
[319556992,1710856232455,-1633.34,0.00028195,2]
[319556993,1710856232465,-500.0,0.00028413,2]
[319556994,1710856232475,-250.0,0.00028579,2]
[319556995,1710856232484,-150.0,0.00028723,2]
[319556996,1710856232494,-166.78,0.00028754,2]
[319556997,1710856232504,-153.04593668,0.00028824,2]
[319556998,1710856232513,-2751.0,0.00028855,2]
[319556999,1710856232523,-1000.0,0.00028917,60]
[319557000,1710856232532,-200.0,0.0002892,2]
[319557001,1710856232542,-1705.72,0.00029018,2]
[319557002,1710856232551,-5000.0,0.00029018,2]
[319557003,1710856232561,-153.04593668,0.00029088,2]
[319557005,1710856232571,-200.0,0.00029163,2]
[319557007,1710856232580,-168.85,0.00029163,120]
[319557009,1710856232590,-250.0,0.00029235,2]
[319557011,1710856232600,-23900.0,0.00029292,2]
[319557013,1710856232609,-183.68,0.00029382,2]
[319557014,1710856232619,-323.89,0.00029399,2]
[319557015,1710856232629,-153.04593668,0.00029455,2]
[319557016,1710856232638,-183.68,0.00029462,2]
[319557017,1710856232648,-8102.0,0.00029469,2]
[319557018,1710856232657,-351.21345468,0.00029502,2]
[319557019,1710856232667,-8191.62,0.00029528,2]
[319557020,1710856232676,-183.68,0.00029543,2]
[319557021,1710856232685,-326.83,0.00029581,2]
[319557022,1710856232695,-183.68,0.00029623,2]
[319557023,1710856232707,-151.97156079,0.00029688,2]
[319557024,1710856232717,-183.68,0.00029704,2]
[319557025,1710856232726,-183.68,0.00029785,2]
[319557026,1710856232736,-183.68,0.00029865,2]
[319557027,1710856232746,-183.68,0.00029946,2]
[319557028,1710856232755,-591.58763706,0.0003,17]
[319557029,1710856232765,-500.0,0.0003,2]
[319557030,1710856232775,-183.68,0.00030026,2]
[319557031,1710856232784,-152.47008401,0.00030061,7]
[319557032,1710856232794,-183.68,0.00030107,2]
[319557033,1710856232803,-183.68,0.00030188,2]
[319557034,1710856232813,-183.68,0.00030268,2]
[319557035,1710856232823,-175.58196687,0.00030296,7]
[319557036,1710856232832,-151.97156079,0.00030342,7]
[319557037,1710856232842,-183.68,0.00030349,2]
[319557038,1710856232852,-183.68,0.00030429,2]
[319557039,1710856232862,-183.68,0.0003051,2]
[319557040,1710856232871,-183.68,0.0003059,2]
[319557041,1710856232881,-183.68,0.00030671,2]
[319557042,1710856232890,-160.56,0.00030672,10]
[319557043,1710856232900,-447.46,0.00030672,2]
[319557044,1710856232909,-1984.57,0.00030672,2]
[319557045,1710856232918,-400.0,0.00030751,2]
[319557046,1710856232928,-183.68,0.00030752,2]
[319557047,1710856232937,-183.68,0.00030832,2]
[319557048,1710856232947,-183.68,0.00030913,2]
[319557049,1710856232959,-1705.72,0.00031758,2]
[319557050,1710856232969,-326.83,0.00031845,2]
[319557051,1710856232979,-157.82775289,0.0003193,7]
[319557052,1710856232988,-151.97156079,0.00032041,7]
[319557053,1710856232997,-159.09,0.00032322,2]
[319557054,1710856233007,-364.54,0.00032566,2]
[319557055,1710856233017,-180.76,0.00032585,120]
[319557056,1710856233026,-364.54,0.00032686,2]
[319557057,1710856233035,-364.54,0.00032806,2]
[319557058,1710856233045,-364.54,0.00032926,2]
[319557059,1710856233054,-364.54,0.00033046,2]
[319557060,1710856233064,-364.54,0.00033166,2]
[319557061,1710856233073,-364.54,0.00033286,2]
[319557062,1710856233083,-364.54,0.00033406,2]
[319557063,1710856233092,-364.54,0.00033526,2]
[319557064,1710856233102,-364.54,0.00033646,2]
[319557065,1710856233112,-364.54,0.00033766,2]
[319557066,1710856233122,-364.54,0.00033886,2]
[319557067,1710856233131,-364.54,0.00034006,2]
[319557068,1710856233141,-326.83,0.00034109,2]
[319557069,1710856233151,-364.54,0.00034126,2]
[319557070,1710856233160,-364.54,0.00034246,2]
[319557071,1710856233170,-364.54,0.00034366,2]
[319557072,1710856233180,-364.54,0.00034486,2]
[319557073,1710856233189,-1705.72,0.00034498,2]
[319557074,1710856233199,-447.46,0.00034506,2]
[319557075,1710856233210,-167.0,0.00034554,2]
[319557076,1710856233220,-400.0,0.00034595,2]
[319557077,1710856233232,-364.54,0.00034606,2]
[319557078,1710856233241,-364.54,0.00034726,2]
[319557079,1710856233251,-364.54,0.00034846,2]
[319557080,1710856233261,-326.83,0.00036372,2]
[319557081,1710856233270,-168.85,0.00036454,120]
[319557082,1710856233280,-153.04593668,0.00036532,7]
[319557083,1710856233289,-160.56,0.00036543,10]
[319557084,1710856233300,-391.26894348,0.000366,2]
[319557085,1710856233310,-391.26894345,0.000366,2]
[319557086,1710856233320,-391.26894345,0.000366,2]
[319557087,1710856233330,-948.57,0.00036712,60]
[319557088,1710856233340,-391.26894345,0.0003673,2]
[319557089,1710856233349,-150.21260499,0.00036774,7]
[319557090,1710856233358,-810.2557,0.00036779,2]
[319557091,1710856233367,-10295.9858,0.00036779,2]
[319557092,1710856233376,-1397.91,0.00036876,60]
[319557093,1710856233386,-655.5058548,0.00036878,4]
[319557094,1710856233395,-397.56782635,0.00037248,4]
[319557095,1710856233405,-158.09190079,0.00037248,4]
[319557096,1710856233414,-5184.3572,0.00037421,2]
[319557097,1710856233423,-10894.3521,0.00037434,2]
[319557098,1710856233433,-948.57,0.00037534,62]
[319557099,1710856233442,-1397.91,0.00037698,62]
[319557100,1710856233454,-474.244,0.00037857,2]
[319557101,1710856233463,-432.0,0.00037957,2]
[319557102,1710856233473,-2427.0,0.00037957,2]
[319557103,1710856233482,-4760.0,0.00037957,2]
[319557104,1710856233492,-5666.0,0.00037957,2]
[319557105,1710856233502,-42865.0,0.00037957,2]
[319557106,1710856233512,-1080.021,0.00037957,2]
[319557107,1710856233522,-4107.64544136,0.00038056,2]
[319557108,1710856233532,-151.0,0.00038094,2]
[319557109,1710856233541,-153.04593668,0.00038241,7]
[319557110,1710856233552,-187.28362033,0.000383,8]
[319557111,1710856233561,-447.46,0.0003834,2]
[319557112,1710856233570,-948.57,0.00038356,64]
[319557113,1710856233579,-391.26894345,0.00038421,2]
[319557114,1710856233589,-400.0,0.00038438,2]
[319557115,1710856233599,-1397.91,0.0003852,64]
[319557116,1710856233608,-326.83,0.00038636,2]
[319557117,1710856233617,-287.8444926,0.000388,11]
[319557118,1710856233626,-152.47008401,0.00038845,7]
[319557119,1710856233636,-68996.44126474,0.000389,5]
[319557120,1710856233650,-44235.56033873,0.000389,5]
[319557121,1710856233659,-4044.22426239,0.000389,15]
[319557122,1710856233669,-153.04593668,0.00039002,7]
[319557123,1710856233678,-948.57,0.00039178,66]
[319557124,1710856233688,-1397.91,0.00039342,66]
[319557125,1710856233697,-743.0,0.00039486,5]
[319557126,1710856233805,-187.28362032,0.00039507,9]
[319557127,1710856233816,-222.0,0.0003959,49]
[319557128,1710856233826,-510.0,0.00039819,120]
[319557129,1710856233835,-948.57,0.0004,68]
[319557130,1710856233844,-10741.53583914,0.00040003,2]
[319557131,1710856233853,-176.49688066,0.00040093,120]
[319557132,1710856233863,-391.26894345,0.00040112,2]
[319557133,1710856233872,-1397.91,0.00040164,68]
[319557134,1710856233881,-220.0,0.000402,30]
[319557135,1710856233891,-349.0,0.000402,30]
[319557136,1710856233900,-694.75755216,0.000402,30]
[319557137,1710856233912,-305.24244784,0.000402,30]
[319557138,1710856233921,-44.92505216,0.00040257,2]
[319557139,1710856233932,-122.07494784,0.00040257,2]
[319557140,1710856233941,-745.37502554,0.00040498,4]
[319557141,1710856233954,-155.0,0.00040498,4]
[319557142,1710856233963,-200.0,0.00040611,15]
[319557143,1710856233973,-800.0,0.00040611,15]
[319557144,1710856233983,-200.0,0.00040611,20]
[319557145,1710856233992,-187.28362032,0.00040714,10]
[319557146,1710856234002,-179.39175962,0.00040731,120]
[319557147,1710856234027,-1.36824038,0.00040731,120]
[319557148,1710856234036,-948.57,0.00040821,70]
[319557149,1710856234047,-326.83,0.000409,2]
[319557150,1710856234057,-1397.91,0.00040986,70]
[319557151,1710856234066,-183.0,0.00041096,2]
[319557152,1710856234077,-4000.0,0.00041096,2]
[319557153,1710856234087,-323.89,0.00041159,2]
[319557154,1710856234096,-156.49953638,0.00041347,30]
[319557155,1710856234105,-10741.53583914,0.00041378,3]
[319557156,1710856234115,-948.57,0.00041643,72]
[319557157,1710856234126,-391.26894345,0.00041803,4]
[319557158,1710856234136,-1397.91,0.00041808,72]
[319557159,1710856234145,-187.28362032,0.00041921,10]
[319557160,1710856234155,-24108.0,0.00042098,30]
[319557161,1710856234164,-447.46,0.00042174,2]
[319557162,1710856234174,-400.0,0.00042282,2]
[319557163,1710856234187,-160.56,0.00042413,10]
[319557164,1710856234196,-948.57,0.00042465,74]
[319557165,1710856234209,-1397.91,0.0004263,74]
[319557166,1710856234220,-152.47008401,0.00042686,30]
[319557167,1710856234232,-222.0,0.0004275,55]
[319557168,1710856234241,-10741.53583914,0.00042752,4]
[319557169,1710856234251,-1793.84287411,0.0004288,2]
[319557170,1710856234260,-151.97156079,0.00042991,30]
[319557171,1710856234270,-187.28362032,0.00043128,11]
[319557172,1710856234279,-326.83,0.00043164,2]
[319557173,1710856234289,-948.57,0.00043287,76]
[319557174,1710856234298,-1397.91,0.00043452,76]
[319557175,1710856234308,-391.26894345,0.00043493,5]
[319557176,1710856234320,-168.85,0.00043745,120]
[319557177,1710856234330,-19999.999999,0.00043825,5]
[319557178,1710856234340,-200.0,0.00043836,30]
[319557179,1710856234349,-500.0,0.00044,7]
[319557180,1710856234359,-500.0,0.00044,7]
[319557181,1710856234368,-500.0,0.00044,7]
[319557182,1710856234377,-500.0,0.00044,7]
[319557183,1710856234386,-500.0,0.00044,7]
[319557184,1710856234398,-500.0,0.00044,7]
[319557185,1710856234407,-500.0,0.00044,7]
[319557186,1710856234417,-500.0,0.00044,7]
[319557187,1710856234427,-500.0,0.00044,7]
[319557188,1710856234437,-500.0,0.00044,7]
[319557189,1710856234449,-500.0,0.00044,7]
[319557190,1710856234465,-500.0,0.00044,7]
[319557191,1710856234475,-500.0,0.00044,7]
[319557192,1710856234485,-500.0,0.00044,7]
[319557193,1710856234495,-500.0,0.00044,7]
[319557194,1710856234505,-500.0,0.00044,7]
[319557195,1710856234514,-500.0,0.00044,7]
[319557196,1710856234524,-500.0,0.00044,7]
[319557197,1710856234534,-500.0,0.00044,7]
[319557198,1710856234544,-500.0,0.00044,7]
[319557199,1710856234554,-500.0,0.00044,7]
[319557200,1710856234564,-500.0,0.00044,7]
[319557201,1710856234574,-500.0,0.00044,7]
[319557202,1710856234584,-500.0,0.00044,7]
[319557203,1710856234596,-500.0,0.00044,7]
[319557204,1710856234606,-500.0,0.00044,7]
[319557205,1710856234617,-500.0,0.00044,7]
[319557206,1710856234627,-500.0,0.00044,7]
[319557207,1710856234638,-500.0,0.00044,7]
[319557208,1710856234649,-500.0,0.00044,7]